[Event "27th Fajr Cup Masters 2019"]
[Site "Tehran"]
[Date "2019.02.06"]
[Round "2.1"]
[White "Akbari Gelvardi, Mohammad"]
[Black "Kuzubov, Yuriy"]
[Result "0-1"]
[ECO "B15"]
[WhiteElo "2289"]
[BlackElo "2650"]
[Annotator "ChessBase"]
[PlyCount "158"]
[EventDate "2019.02.05"]
[EventType "swiss"]
[EventCountry "IRI"]
[SourceTitle "playchess.com"]
[Source "ChessBase"]
[SourceQuality "1"]
[TimeControl "5400+30"]

1. e4 {[%emt 0:00:43]} c6 {[%emt 0:00:00]} 2. d4 {[%emt 0:00:55]} d5 {[%emt 0:00:00]} 3. Nc3 {[%emt 0:00:58]} dxe4 {[%emt 0:00:00]} 4. Nxe4 {[%emt 0:00:35]} Nf6 {[%emt 0:00:00]} 5. Ng3 {[%emt 0:03:14]} Bg4 {[%emt 0:01:39]} 6. Be2 {[%emt 0:01:57]} Bxe2 {[%emt 0:00:21]} 7. N1xe2 {[%emt 0:01:47]} e6 {[%emt 0:00:06]} 8. O-O {[%emt 0:00:35]} Be7 {[%emt 0:00:05]} 9. c4 {[%emt 0:03:12]} O-O {[%emt 0:03:08]} 10. Be3 {[%emt 0:10:01]} Nbd7 {[%emt 0:02:06]} 11. Nc3 {[%emt 0:05:49]} Qa5 {[%emt 0:03:45]} 12. Qe2 {[%emt 0:04:33]} Rfe8 {[%emt 0:05:04]} 13. Rfd1 {[%emt 0:01:40]} Bb4 {[%emt 0:17:44]} 14. Nce4 {[%emt 0:15:30]} Bf8 {[%emt 0:01:44]} 15. a3 {[%emt 0:02:37]} Nxe4 16. Nxe4 {[%emt 0:00:04]} Qf5 {[%emt 0:10:15]} 17. Ng3 {[%emt 0:04:31]} Qg6 {[%emt 0:03:13]} 18. Bf4 {[%emt 0:05:39]} a5 {[%emt 0:07:26]} 19. Rac1 {[%emt 0:00:48]} a4 {[%emt 0:04:21]} 20. Rc3 {[%emt 0:07:08]} c5 {[%emt 0:09:33]} 21. Nh5 {[%emt 0:06:17]} cxd4 {[%emt 0:05:31]} 22. Rg3 {[%emt 0:00:53]} e5 {[%emt 0:00:20]} 23. Rxg6 {[%emt 0:01:25]} hxg6 {[%emt 0:00:05]} 24. Qg4 {[%emt 0:04:19]} Rad8 {[%emt 0:13:59]} 25. Bg5 {[%emt 0:07:04]} gxh5 {[%emt 0:00:06]} 26. Qxh5 {[%emt 0:00:06]} f6 {[%emt 0:01:35]} 27. Bd2 {[%emt 0:00:05]} Nc5 {[%emt 0:01:12]} 28. Bb4 {[%emt 0:00:57]} Ne6 {[%emt 0:00:20]} 29. Qf5 {[%emt 0:01:29]} b6 {[%emt 0:02:10]} 30. Bxf8 {[%emt 0:01:05]} Kxf8 {[%emt 0:00:23]} 31. h4 {[%emt 0:00:17]} Rd6 {[%emt 0:02:08]} 32. h5 {[%emt 0:01:04]} Ng5 {[%emt 0:02:32]} 33. f4 {[%emt 0:04:49]} Nf7 {[%emt 0:00:18]} 34. fxe5 {[%emt 0:00:36]} Nxe5 {[%emt 0:00:10]} 35. h6 {[%emt 0:01:01]} gxh6 {[%emt 0:00:53]} 36. Qf4 {[%emt 0:00:05]} d3 {[%emt 0:00:32]} 37. Qxh6+ {[%emt 0:00:30]} Kg8 {[%emt 0:00:47]} 38. Qf4 {[%emt 0:03:14]} Red8 {[%emt 0:00:33]} 39. Rd2 {[%emt 0:00:23]} Kf7 {[%emt 0:00:41]} 40. Qh4 {[%emt 0:00:56]} Rg8 {[%emt 0:01:38]} 41. Qh5+ {[%emt 0:00:26]} Ke6 {[%emt 0:00:24]} 42. Qh3+ {[%emt 0:00:43]} Rg4 {[%emt 0:00:19]} 43. Kf2 {[%emt 0:00:58]} Kd7 {[%emt 0:01:01]} 44. Qh7+ {[%emt 0:00:28]} Kc6 {[%emt 0:00:12]} 45. Qf5 {[%emt 0:00:22]} Kb7 {[%emt 0:00:36]} 46. Qh7+ {[%emt 0:00:36]} Rd7 {[%emt 0:00:18]} 47. Qf5 {[%emt 0:00:16]} Rxc4 {[%emt 0:00:07]} 48. Kg1 {[%emt 0:00:07]} Rdd4 {[%emt 0:02:46]} 49. g3 {[%emt 0:00:51]} Rc6 {[%emt 0:01:06]} 50. Kg2 {[%emt 0:00:03]} Rcd6 {[%emt 0:00:35]} 51. Qh7+ {[%emt 0:00:17]} Rd7 {[%emt 0:00:15]} 52. Qg8 {[%emt 0:00:01]} Rg4 {[%emt 0:01:04]} 53. Qe6 {[%emt 0:00:15]} Rdg7 {[%emt 0:00:15]} 54. Qd5+ {[%emt 0:01:11]} Ka7 {[%emt 0:00:05]} 55. Rd1 {[%emt 0:01:01]} Rxg3+ {[%emt 0:00:06]} 56. Kf2 {[%emt 0:00:01]} Rf3+ {[%emt 0:00:45]} 57. Qxf3 {[%emt 0:00:41]} Nxf3 {[%emt 0:00:04]} 58. Kxf3 {[%emt 0:00:03]} Rd7 {[%emt 0:00:04]} 59. Rd2 {[%emt 0:00:36]} Ka6 {[%emt 0:00:58]} 60. Kf2 {[%emt 0:00:12]} Rc7 {[%emt 0:01:10]} 61. Rxd3 {[%emt 0:01:29]} Rc2+ {[%emt 0:00:03]} 62. Ke1 {[%emt 0:00:13]} Rxb2 {[%emt 0:00:05]} 63. Rf3 {[%emt 0:00:42]} Rb3 {[%emt 0:00:12]} 64. Rxf6 {[%emt 0:00:07]} Rxa3 {[%emt 0:00:04]} 65. Kd2 {[%emt 0:00:08]} Rb3 {[%emt 0:00:29]} 66. Kc2 {[%emt 0:00:08]} Ka5 {[%emt 0:00:05]} 67. Rf4 {[%emt 0:00:11]} b5 {[%emt 0:00:06]} 68. Rh4 {[%emt 0:00:04]} Rb4 {[%emt 0:00:17]} 69. Rh8 {[%emt 0:00:06]} Rg4 {[%emt 0:00:12]} 70. Rh2 {[%emt 0:00:28]} Rg5 {[%emt 0:00:19]} 71. Kb2 {[%emt 0:00:20]} b4 {[%emt 0:00:09]} 72. Ka2 {[%emt 0:00:23]} Kb5 {[%emt 0:00:45]} 73. Rf2 {[%emt 0:00:08]} a3 {[%emt 0:00:23]} 74. Kb3 {[%emt 0:01:38]} Rg3+ {[%emt 0:00:06]} 75. Ka2 {[%emt 0:00:04]} Ka4 {[%emt 0:00:09]} 76. Rf4 {[%emt 0:00:06]} Rc3 {[%emt 0:01:00]} 77. Rh4 {[%emt 0:00:12]} Rc2+ {[%emt 0:00:24]} 78. Kb1 {[%emt 0:00:06]} Rd2 {[%emt 0:00:08]} 79. Kc1 {[%emt 0:01:41]} a2 {[%emt 0:00:13]} 0-1

[Event "27th Fajr Cup Masters 2019"]
[Site "Tehran"]
[Date "2019.02.06"]
[Round "2.2"]
[White "Ponkratov, Pavel"]
[Black "Daneshvar, Bardiya"]
[Result "1-0"]
[ECO "B12"]
[WhiteElo "2630"]
[BlackElo "2283"]
[Annotator "RC"]
[PlyCount "110"]
[EventDate "2019.02.05"]
[EventType "swiss"]
[EventCountry "IRI"]
[SourceTitle "playchess.com"]
[Source "ChessBase"]
[SourceQuality "1"]
[TimeControl "5400+30"]

1. e4 {[%emt 0:00:00]} c6 {[%emt 0:00:00]} 2. d4 {[%emt 0:00:00]} d5 {[%emt 0:00:00]} 3. e5 {[%emt 0:00:00]} Bf5 {[%emt 0:00:00]} 4. Nf3 {[%emt 0:00:00]} e6 {[%emt 0:00:00]} 5. Be2 {[%emt 0:00:00]} c5 {[%emt 0:00:00]} 6. O-O {[%emt 0:01:29]} Qb6 {[%emt 0:00:22]} 7. c4 {[%emt 0:00:46]} dxc4 {[%emt 0:06:36]} 8. Na3 {[%emt 0:01:04]} Nc6 {[%emt 0:03:11]} 9. Nxc4 {[%emt 0:00:06]} Qc7 {[%emt 0:00:24]} 10. Be3 {[%emt 0:00:11]} O-O-O {[%emt 0:02:22]} 11. Rc1 {[%emt 0:02:27]} Kb8 {[%emt 0:04:53]} 12. Qd2 {[%emt 0:11:44]} Bg4 {[%emt 0:12:32]} 13. Nd6 {[%emt 0:04:59]} Bxf3 {[%emt 0:03:36]} 14. Bxf3 {[%emt 0:00:13]} Bxd6 {[%emt 0:00:11]} 15. exd6 {[%emt 0:00:55]} Qxd6 {[%emt 0:00:17]} 16. Bxc6 {[%emt 0:16:19]} Qxc6 {[%emt 0:01:36]} 17. Qa5 {[%emt 0:00:20]} Nf6 {[%emt 0:07:05]} 18. Bf4+ {[%emt 0:12:03]} Ka8 {[%emt 0:00:18]} 19. dxc5 {[%emt 0:00:05]} Rd4 {[%emt 0:06:11]} 20. Be5 {[%emt 0:06:10]} Rd5 {[%emt 0:00:21]} 21. Bxf6 {[%emt 0:08:01]} gxf6 {[%emt 0:00:07]} 22. Rfd1 {[%emt 0:00:03]} h5 {[%emt 0:08:05]} 23. Rxd5 Qxd5 {[%emt 0:00:10]} 24. Qc7 {[%emt 0:13:55]} h4 {[%emt 0:03:30]} 25. c6 {[%emt 0:00:55]} bxc6 {[%emt 0:00:17]} 26. Qxc6+ {[%emt 0:00:03]} Qxc6 {[%emt 0:00:23]} 27. Rxc6 {[%emt 0:00:07]} Rd8 {[%emt 0:12:47]} 28. Kf1 {[%emt 0:00:05]} Kb7 {[%emt 0:00:38]} 29. Rc4 {[%emt 0:00:59]} Rd1+ {[%emt 0:01:47]} 30. Ke2 {[%emt 0:00:06]} Rb1 {[%emt 0:00:05]} 31. Rb4+ {[%emt 0:01:25]} Kc6 {[%emt 0:00:07]} 32. Kf3 {[%emt 0:00:26]} f5 {[%emt 0:00:24]} 33. Rxh4 {[%emt 0:01:00]} Rxb2 {[%emt 0:00:05]} 34. Ra4 {[%emt 0:00:03]} Rb7 {[%emt 0:00:45]} 35. h4 {[%emt 0:00:56]} e5 {[%emt 0:01:26]} 36. Ra6+ {[%emt 0:00:36]} Kd5 {[%emt 0:00:12]} 37. h5 {[%emt 0:00:34]} Rb1 {[%emt 0:04:45]} 38. Rf6 {[%emt 0:01:15]} Rh1 {[%emt 0:01:13]} 39. Rxf5 {[%emt 0:00:28]} Ke6 {[%emt 0:00:31]} 40. Kg4 {[%emt 0:01:09]} f6 {[%emt 0:04:35]} 41. Rf3 {[%emt 0:00:12]} e4 {[%emt 0:00:09]} 42. Ra3 {[%emt 0:00:26]} Rh2 {[%emt 0:00:11]} 43. Ra6+ {[%emt 0:00:18]} Kf7 {[%emt 0:00:14]} 44. Rxa7+ {[%emt 0:00:06]} Ke6 {[%emt 0:00:03]} 45. Ra6+ {[%emt 0:00:17]} Ke7 {[%emt 0:00:38]} 46. Kf5 {[%emt 0:03:41]} Rxg2 {[%emt 0:00:19]} 47. h6 {[%emt 0:00:05]} Rxf2+ {[%emt 0:01:13]} 48. Kxe4 {[%emt 0:00:08]} Kf7 {[%emt 0:00:12]} 49. Ra7+ {[%emt 0:01:37]} Kg8 {[%emt 0:04:25]} 50. a4 {[%emt 0:00:05]} Rh2 {[%emt 0:00:23]} 51. h7+ {[%emt 0:08:05]} Kh8 {[%emt 0:00:06]} 52. a5 {[%emt 0:00:05]} Rh5 {[%emt 0:08:46]} 53. Kd4 {[%emt 0:00:17]} Rg5 {[%emt 0:00:49]} 54. Kc4 {[%emt 0:00:31]} f5 {[%emt 0:00:34]} 55. Rf7 {[%emt 0:00:19]} Rg6 {[%emt 0:00:30]} 1-0

[Event "27th Fajr Cup Masters 2019"]
[Site "Tehran"]
[Date "2019.02.06"]
[Round "2.9"]
[White "Vojdani, Siavosh"]
[Black "Tahbaz, Arash"]
[Result "0-1"]
[ECO "B92"]
[WhiteElo "2205"]
[BlackElo "2484"]
[Annotator "RC"]
[PlyCount "170"]
[EventDate "2019.02.05"]
[EventType "swiss"]
[EventCountry "IRI"]
[SourceTitle "playchess.com"]
[Source "ChessBase"]
[SourceQuality "1"]
[TimeControl "5400+30"]

1. e4 {[%emt 0:00:00]} c5 {[%emt 0:04:23]} 2. Nf3 {[%emt 0:00:00]} d6 {[%emt 0:00:13]} 3. d4 {[%emt 0:00:00]} cxd4 {[%emt 0:00:03]} 4. Nxd4 {[%emt 0:00:04]} Nf6 {[%emt 0:00:02]} 5. Nc3 {[%emt 0:00:17]} a6 {[%emt 0:00:03]} 6. Be2 {[%emt 0:00:12]} e5 {[%emt 0:01:38]} 7. Nb3 {[%emt 0:00:18]} Be7 {[%emt 0:00:04]} 8. O-O {[%emt 0:00:19]} O-O {[%emt 0:00:02]} 9. Re1 {[%emt 0:00:10]} a5 {[%emt 0:00:41]} 10. a4 {[%emt 0:03:00]} Nc6 {[%emt 0:00:06]} 11. Bg5 {[%emt 0:01:46]} Be6 {[%emt 0:04:24]} 12. Bf3 {[%emt 0:06:04]} Rc8 {[%emt 0:08:20]} 13. Nb5 {[%emt 0:06:26]} Ne8 {[%emt 0:08:54]} 14. Be3 {[%emt 0:04:34]} h6 {[%emt 0:02:02]} 15. Re2 {[%emt 0:04:01]} Bg5 {[%emt 0:02:16]} 16. Bxg5 {[%emt 0:03:18]} Qxg5 {[%emt 0:00:14]} 17. c3 {[%emt 0:06:16]} Nf6 {[%emt 0:03:09]} 18. Re3 {[%emt 0:06:57]} Rfd8 {[%emt 0:01:17]} 19. Nd2 {[%emt 0:11:27]} d5 {[%emt 0:03:25]} 20. Rd3 {[%emt 0:05:53]} d4 {[%emt 0:05:01]} 21. cxd4 {[%emt 0:02:07]} exd4 {[%emt 0:02:03]} 22. Be2 {[%emt 0:00:16]} Nb4 {[%emt 0:01:09]} 23. Nf3 {[%emt 0:03:55]} Qf4 {[%emt 0:02:21]} 24. Rxd4 {[%emt 0:01:11]} Rxd4 {[%emt 0:01:28]} 25. Nbxd4 {[%emt 0:00:19]} Qxe4 {[%emt 0:01:41]} 26. Nxe6 {[%emt 0:01:06]} Qxe6 {[%emt 0:00:38]} 27. b3 {[%emt 0:02:32]} Qb6 {[%emt 0:06:36]} 28. Bc4 {[%emt 0:01:52]} Rd8 {[%emt 0:00:50]} 29. Qf1 {[%emt 0:02:29]} Ne4 {[%emt 0:01:18]} 30. Re1 {[%emt 0:04:11]} Nd6 {[%emt 0:02:10]} 31. Ne5 {[%emt 0:00:27]} Qd4 {[%emt 0:02:16]} 32. Qe2 {[%emt 0:02:48]} Re8 {[%emt 0:02:15]} 33. Rd1 {[%emt 0:02:51]} Qc3 {[%emt 0:10:46]} 34. Qf3 {[%emt 0:04:27]} Qxe5 {[%emt 0:03:56]} 35. Rxd6 {[%emt 0:00:22]} Qe1+ {[%emt 0:04:12]} 36. Bf1 {[%emt 0:00:16]} Qe7 {[%emt 0:00:55]} 37. Rd2 {[%emt 0:01:45]} Rc8 {[%emt 0:00:20]} 38. Re2 {[%emt 0:00:40]} Qd7 {[%emt 0:00:44]} 39. Re1 {[%emt 0:01:58]} Nc2 {[%emt 0:02:03]} 40. Rc1 {[%emt 0:01:48]} Rc6 {[%emt 0:01:34]} 41. Qd1 {[%emt 0:04:27]} Qc7 {[%emt 0:03:08]} 42. Bd3 {[%emt 0:02:03]} Nd4 {[%emt 0:00:07]} 43. Rxc6 {[%emt 0:00:14]} Qxc6 {[%emt 0:01:17]} 44. Bc4 {[%emt 0:01:28]} Qf6 {[%emt 0:04:32]} 45. Qe1 {[%emt 0:01:28]} Qd8 {[%emt 0:00:22]} 46. h3 {[%emt 0:00:24]} b6 {[%emt 0:00:18]} 47. Qe4 {[%emt 0:00:43]} Qd7 {[%emt 0:02:39]} 48. Qa8+ {[%emt 0:01:44]} Kh7 {[%emt 0:00:01]} 49. Qe4+ {[%emt 0:00:18]} g6 {[%emt 0:00:37]} 50. Qf4 {[%emt 0:00:49]} Nf5 {[%emt 0:01:25]} 51. Qb8 {[%emt 0:00:56]} Qd1+ {[%emt 0:01:23]} 52. Kh2 {[%emt 0:00:31]} Qd6+ 53. Qxd6 {[%emt 0:00:08]} Nxd6 {[%emt 0:00:02]} 54. Bd3 {[%emt 0:00:33]} Kg7 {[%emt 0:00:16]} 55. Kg3 {[%emt 0:00:45]} Kf6 {[%emt 0:00:01]} 56. f4 {[%emt 0:01:45]} Ke6 {[%emt 0:00:03]} 57. Kf3 {[%emt 0:00:05]} Kd5 {[%emt 0:00:01]} 58. Ke3 {[%emt 0:00:14]} Kc5 {[%emt 0:00:07]} 59. Bc2 {[%emt 0:01:57]} Ne8 {[%emt 0:00:19]} 60. f5 {[%emt 0:00:24]} g5 {[%emt 0:00:05]} 61. Kd3 {[%emt 0:00:24]} h5 {[%emt 0:00:10]} 62. Bd1 {[%emt 0:00:34]} h4 {[%emt 0:00:06]} 63. Bf3 {[%emt 0:00:32]} f6 {[%emt 0:00:06]} 64. Kc3 {[%emt 0:00:04]} Nd6 {[%emt 0:00:07]} 65. Bg4 {[%emt 0:00:21]} Ne4+ {[%emt 0:00:01]} 66. Kd3 {[%emt 0:00:38]} Nd6 {[%emt 0:01:47]} 67. Kc3 {[%emt 0:00:10]} b5 {[%emt 0:00:39]} 68. axb5 {[%emt 0:00:59]} Nxb5+ {[%emt 0:00:01]} 69. Kb2 {[%emt 0:00:28]} Kb4 {[%emt 0:01:33]} 70. Bf3 {[%emt 0:00:24]} Nd4 {[%emt 0:00:09]} 71. Bd5 {[%emt 0:00:09]} Nxf5 {[%emt 0:00:03]} 72. Bc6 {[%emt 0:00:29]} Ne3 {[%emt 0:00:10]} 73. Be4 {[%emt 0:00:49]} f5 {[%emt 0:00:02]} 74. Bd3 {[%emt 0:00:13]} g4 {[%emt 0:00:14]} 75. Bxf5 {[%emt 0:00:28]} Nxf5 {[%emt 0:00:55]} 76. hxg4 {[%emt 0:00:07]} Ne7 {[%emt 0:01:30]} 77. g5 {[%emt 0:00:36]} Kc5 {[%emt 0:00:09]} 78. Ka3 {[%emt 0:00:12]} Kd5 {[%emt 0:00:29]} 79. Ka4 {[%emt 0:00:11]} Nc6 {[%emt 0:00:15]} 80. Kb5 {[%emt 0:00:20]} Nd4+ {[%emt 0:00:07]} 81. Kxa5 {[%emt 0:00:06]} Nxb3+ {[%emt 0:01:06]} 82. Kb4 {[%emt 0:00:09]} Nd4 {[%emt 0:00:02]} 83. Kc3 {[%emt 0:00:29]} Ke5 {[%emt 0:00:21]} 84. Kd3 {[%emt 0:00:13]} Ne6 {[%emt 0:00:05]} 85. Ke3 {[%emt 0:00:29]} Nxg5 {[%emt 0:00:05] Kd4+} 0-1

[Event "27th Fajr Cup Masters 2019"]
[Site "Tehran"]
[Date "2019.02.06"]
[Round "3.2"]
[White "Khodashenas, Mersad"]
[Black "Ponkratov, Pavel"]
[Result "1/2-1/2"]
[ECO "C28"]
[WhiteElo "2455"]
[BlackElo "2630"]
[Annotator "ChessBase"]
[PlyCount "81"]
[EventDate "2019.02.05"]
[EventType "swiss"]
[EventCountry "IRI"]
[SourceTitle "playchess.com"]
[Source "ChessBase"]
[SourceQuality "1"]
[TimeControl "5400+30"]

1. e4 {[%emt 0:00:00]} e5 {[%emt 0:00:00]} 2. Nc3 {[%emt 0:00:00]} Nf6 {[%emt 0:00:14]} 3. Bc4 {[%emt 0:00:00]} Nc6 {[%emt 0:00:25]} 4. d3 {[%emt 0:00:04]} Na5 {[%emt 0:00:06]} 5. Nge2 {[%emt 0:00:18]} c6 {[%emt 0:01:37]} 6. a4 {[%emt 0:00:01]} d5 {[%emt 0:02:18]} 7. exd5 {[%emt 0:04:45]} cxd5 {[%emt 0:00:04]} 8. Bb5+ {[%emt 0:02:55]} Nc6 {[%emt 0:00:09]} 9. f4 {[%emt 0:06:17]} exf4 {[%emt 0:09:53]} 10. Bxf4 {[%emt 0:04:44]} a6 {[%emt 0:00:59]} 11. Bxc6+ {[%emt 0:00:29]} bxc6 {[%emt 0:00:05]} 12. d4 {[%emt 0:05:32]} Be7 {[%emt 0:00:16]} 13. O-O {[%emt 0:00:20]} a5 {[%emt 0:00:21]} 14. Ng3 {[%emt 0:04:11]} O-O {[%emt 0:00:08]} 15. Qd2 {[%emt 0:00:46]} Ne8 {[%emt 0:09:39]} 16. Rae1 {[%emt 0:04:32]} Ra7 {[%emt 0:00:12]} 17. Nd1 {[%emt 0:01:09]} f6 {[%emt 0:00:20]} 18. Ne2 {[%emt 0:15:27]} Nd6 {[%emt 0:04:14]} 19. Bxd6 {[%emt 0:04:45]} Bxd6 {[%emt 0:00:23]} 20. Nf4 {[%emt 0:02:06]} Re8 {[%emt 0:02:34]} 21. Rxe8+ {[%emt 0:02:51]} Qxe8 {[%emt 0:00:04]} 22. Re1 {[%emt 0:03:18]} Qd8 {[%emt 0:03:58]} 23. Nf2 {[%emt 0:02:10]} Bf5 {[%emt 0:02:40]} 24. N4d3 {[%emt 0:01:40]} Qc7 {[%emt 0:05:23]} 25. g3 {[%emt 0:00:50]} Ra8 {[%emt 0:00:06]} 26. Re3 {[%emt 0:00:29]} h5 {[%emt 0:00:42]} 27. Qe2 {[%emt 0:02:44]} Qf7 {[%emt 0:01:06]} 28. Kg2 {[%emt 0:04:21]} Kh7 {[%emt 0:03:22]} 29. Qf3 {[%emt 0:03:35]} g6 {[%emt 0:00:18]} 30. Re1 {[%emt 0:04:08]} Re8 {[%emt 0:00:57]} 31. Re3 {[%emt 0:00:52]} Kg7 {[%emt 0:00:58]} 32. Qe2 {[%emt 0:00:18]} Rxe3 {[%emt 0:00:44]} 33. Qxe3 {[%emt 0:00:02]} g5 {[%emt 0:00:09]} 34. c3 {[%emt 0:00:51]} h4 {[%emt 0:02:03]} 35. b4 {[%emt 0:00:57]} hxg3 {[%emt 0:01:58]} 36. hxg3 {[%emt 0:00:02]} Qc7 {[%emt 0:05:37]} 37. Nc5 {[%emt 0:00:33]} Kf7 {[%emt 0:04:10]} 38. Qf3 {[%emt 0:02:12]} Kg6 {[%emt 0:00:15]} 39. Qe3 {[%emt 0:00:50]} Kf7 {[%emt 0:00:43]} 40. Qf3 {[%emt 0:03:42]} Kg6 {[%emt 0:00:06]} 41. Qe3 {[%emt 0:02:05]} 1/2-1/2

[Event "27th Fajr Cup Masters 2019"]
[Site "Tehran"]
[Date "2019.02.06"]
[Round "3.4"]
[White "Ter-Sahakyan, Samvel"]
[Black "Hosseinzadeh, Nima"]
[Result "1/2-1/2"]
[ECO "C50"]
[WhiteElo "2593"]
[BlackElo "2331"]
[Annotator "ChessBase"]
[PlyCount "155"]
[EventDate "2019.02.05"]
[EventType "swiss"]
[EventCountry "IRI"]
[SourceTitle "playchess.com"]
[Source "ChessBase"]
[SourceQuality "1"]
[TimeControl "5400+30"]

1. e4 {[%emt 0:00:00]} e5 {[%emt 0:00:26]} 2. Nf3 {[%emt 0:00:00]} Nc6 {[%emt 0:00:08]} 3. Bc4 {[%emt 0:00:02]} Bc5 {[%emt 0:00:14]} 4. d3 {[%emt 0:03:19]} Nf6 {[%emt 0:00:10]} 5. Nc3 {[%emt 0:01:45]} d6 {[%emt 0:00:30]} 6. Na4 {[%emt 0:00:14]} Bb6 {[%emt 0:07:59]} 7. a3 {[%emt 0:02:04]} h6 {[%emt 0:03:29]} 8. O-O {[%emt 0:11:02]} O-O {[%emt 0:02:50]} 9. b4 {[%emt 0:07:31]} Be6 {[%emt 0:09:08]} 10. Ba2 {[%emt 0:13:18]} Bxa2 {[%emt 0:01:34]} 11. Rxa2 {[%emt 0:00:03]} Ne7 {[%emt 0:09:28]} 12. c4 {[%emt 0:03:18]} Ng6 {[%emt 0:16:00]} 13. c5 {[%emt 0:10:40]} dxc5 {[%emt 0:00:04]} 14. bxc5 {[%emt 0:00:03]} Ba5 {[%emt 0:00:15]} 15. Nb2 {[%emt 0:00:04]} c6 {[%emt 0:04:09]} 16. Nc4 {[%emt 0:00:46]} Bc7 {[%emt 0:00:02]} 17. a4 {[%emt 0:04:16]} Qd7 {[%emt 0:03:20]} 18. Rb2 {[%emt 0:07:49]} Rab8 {[%emt 0:00:48]} 19. Rb3 {[%emt 0:01:52]} Rfd8 {[%emt 0:02:07]} 20. Qc2 {[%emt 0:00:57]} b5 {[%emt 0:03:06]} 21. cxb6 {[%emt 0:07:29]} axb6 {[%emt 0:00:26]} 22. Bb2 {[%emt 0:03:56]} Qe6 {[%emt 0:04:38]} 23. d4 {[%emt 0:01:52]} Nxe4 {[%emt 0:09:10]} 24. Re3 {[%emt 0:06:00]} Nf6 {[%emt 0:06:08]} 25. dxe5 {[%emt 0:06:05]} Nd5 {[%emt 0:00:04]} 26. Nd4 {[%emt 0:02:48]} Nxe3 {[%emt 0:02:10]} 27. fxe3 {[%emt 0:00:02]} Qe8 {[%emt 0:02:55]} 28. e6 {[%emt 0:04:34]} fxe6 {[%emt 0:01:04]} 29. Qc3 {[%emt 0:01:46]} e5 {[%emt 0:02:12]} 30. Nf5 {[%emt 0:00:36]} Qe6 {[%emt 0:00:24]} 31. e4 {[%emt 0:00:47]} Rd7 {[%emt 0:01:11]} 32. Nce3 {[%emt 0:00:29]} Nf4 {[%emt 0:03:18]} 33. Kh1 {[%emt 0:00:29]} Kh7 {[%emt 0:01:17]} 34. Nxg7 {[%emt 0:00:30]} Rxg7 {[%emt 0:03:51]} 35. Rxf4 {[%emt 0:00:04]} Rd8 {[%emt 0:01:22]} 36. Rf1 {[%emt 0:00:36]} Rgd7 {[%emt 0:00:30]} 37. Qe1 {[%emt 0:00:47]} Bd6 {[%emt 0:00:54]} 38. Nf5 {[%emt 0:00:31]} Bc5 {[%emt 0:00:34]} 39. h3 {[%emt 0:00:34]} Qc4 {[%emt 0:00:58]} 40. Kh2 {[%emt 0:00:15]} Qe6 {[%emt 0:00:35]} 41. Bc1 {[%emt 0:00:42]} Rd1 {[%emt 0:00:30]} 42. Qe2 {[%emt 0:00:05]} Rxf1 {[%emt 0:00:06]} 43. Qxf1 {[%emt 0:00:03]} Bf8 {[%emt 0:00:17]} 44. Qa6 {[%emt 0:00:35]} Rd1 {[%emt 0:01:05]} 45. Be3 {[%emt 0:00:23]} c5 {[%emt 0:00:33]} 46. a5 {[%emt 0:00:09]} Rb1 {[%emt 0:00:26]} 47. Qb7+ {[%emt 0:00:14]} Kg8 {[%emt 0:00:31]} 48. a6 {[%emt 0:00:04]} Ra1 {[%emt 0:00:33]} 49. a7 {[%emt 0:01:14]} Qa2 {[%emt 0:00:17]} 50. Qxb6 {[%emt 0:00:28]} Qxa7 {[%emt 0:00:06]} 51. Qg6+ {[%emt 0:00:27]} Kh8 {[%emt 0:00:12]} 52. Qe8 {[%emt 0:01:14]} Qa8 {[%emt 0:01:23]} 53. Qxe5+ {[%emt 0:00:05]} Kh7 {[%emt 0:00:15]} 54. Qc7+ {[%emt 0:01:23]} Kg8 {[%emt 0:00:11]} 55. Bxh6 {[%emt 0:00:37]} Ra7 {[%emt 0:01:05]} 56. Qg3+ {[%emt 0:00:12]} Kh7 {[%emt 0:00:22]} 57. Qh4 {[%emt 0:00:34]} Bxh6 {[%emt 0:00:30]} 58. Qxh6+ {[%emt 0:00:08]} Kg8 {[%emt 0:00:00]} 59. Qg6+ {[%emt 0:00:38]} Kh8 {[%emt 0:00:16]} 60. e5 {[%emt 0:00:42]} Qb8 {[%emt 0:00:40]} 61. Qh6+ {[%emt 0:00:38]} Kg8 {[%emt 0:00:20]} 62. Qg5+ {[%emt 0:00:21]} Kh8 {[%emt 0:00:13]} 63. Ne7 {[%emt 0:00:41]} Rxe7 {[%emt 0:01:39]} 64. Qxe7 {[%emt 0:00:04]} Qb6 {[%emt 0:00:30]} 65. Qd6 {[%emt 0:00:51]} Qb4 {[%emt 0:00:24]} 66. e6 {[%emt 0:00:07]} Qe4 {[%emt 0:00:13]} 67. e7 {[%emt 0:00:21]} Kg7 {[%emt 0:00:15]} 68. Qxc5 {[%emt 0:00:13]} Kf7 {[%emt 0:00:15]} 69. Qd6 {[%emt 0:00:15]} Qc4 {[%emt 0:00:31]} 70. Qe5 {[%emt 0:01:32]} Ke8 {[%emt 0:00:13]} 71. g4 {[%emt 0:00:32]} Qd3 {[%emt 0:00:45]} 72. Kg2 {[%emt 0:00:31]} Qb3 {[%emt 0:01:03]} 73. Qe4 {[%emt 0:00:38]} Qc3 {[%emt 0:00:29]} 74. Qe2 {[%emt 0:00:30]} Qb3 {[%emt 0:00:28]} 75. Qe4 {[%emt 0:00:33]} Qc3 {[%emt 0:00:14]} 76. Kh2 {[%emt 0:00:09]} Qc7+ {[%emt 0:00:15]} 77. Kh1 {[%emt 0:00:14]} Qc1+ {[%emt 0:00:07]} 78. Kg2 {[%emt 0:00:07]} 1/2-1/2

[Event "27th Fajr Cup Masters 2019"]
[Site "Tehran"]
[Date "2019.02.06"]
[Round "3.6"]
[White "Mosadeghpour, Masoud"]
[Black "Mozaffari, Alireza"]
[Result "1-0"]
[ECO "B95"]
[WhiteElo "2531"]
[BlackElo "2181"]
[Annotator "RC"]
[PlyCount "61"]
[EventDate "2019.02.05"]
[EventType "swiss"]
[EventCountry "IRI"]
[SourceTitle "playchess.com"]
[Source "ChessBase"]
[SourceQuality "1"]
[TimeControl "5400+30"]

1. e4 {[%emt 0:04:42]} c5 {[%emt 0:00:00]} 2. Nf3 {[%emt 0:00:08]} d6 {[%emt 0:00:01]} 3. d4 {[%emt 0:00:04]} cxd4 {[%emt 0:00:12]} 4. Nxd4 {[%emt 0:00:03]} Nf6 {[%emt 0:00:31]} 5. Nc3 {[%emt 0:00:05]} a6 {[%emt 0:00:15]} 6. Bg5 {[%emt 0:00:02]} e6 {[%emt 0:00:54]} 7. Qf3 {[%emt 0:00:05]} Be7 {[%emt 0:04:14]} 8. O-O-O {[%emt 0:00:27]} Qc7 {[%emt 0:01:48]} 9. Bd3 {[%emt 0:00:12]} Nbd7 {[%emt 0:01:12]} 10. Qg3 b5 {[%emt 0:02:44]} 11. Rhe1 {[%emt 0:01:42]} h6 {[%emt 0:01:19]} 12. Bd2 {[%emt 0:01:33]} Ne5 {[%emt 0:02:18]} 13. Kb1 {[%emt 0:02:17]} b4 {[%emt 0:06:04]} 14. Nce2 {[%emt 0:00:17]} a5 {[%emt 0:05:26]} 15. f4 {[%emt 0:03:09]} Nxd3 {[%emt 0:08:07]} 16. cxd3 {[%emt 0:01:21]} Ba6 {[%emt 0:00:02]} 17. Rc1 {[%emt 0:03:18]} Qb7 {[%emt 0:02:29]} 18. e5 {[%emt 0:01:41]} Nd7 {[%emt 0:06:18]} 19. Qxg7 {[%emt 0:17:19]} Bxd3+ {[%emt 0:01:05]} 20. Ka1 {[%emt 0:00:06]} Rh7 {[%emt 0:00:48]} 21. Qg8+ {[%emt 0:00:05]} Bf8 {[%emt 0:02:13]} 22. f5 {[%emt 0:10:23]} Rg7 {[%emt 0:09:37]} 23. Qh8 {[%emt 0:00:01]} dxe5 {[%emt 0:15:43]} 24. Bxh6 {[%emt 0:02:40]} Rxg2 {[%emt 0:04:38]} 25. fxe6 {[%emt 0:02:43]} fxe6 {[%emt 0:01:13]} 26. Bxf8 {[%emt 0:00:58]} exd4 {[%emt 0:03:50]} 27. Nf4 {[%emt 0:02:24]} Nxf8 {[%emt 0:02:57]} 28. Rxe6+ {[%emt 0:02:50]} Kf7 {[%emt 0:00:59]} 29. Rf6+ {[%emt 0:00:20]} Ke7 {[%emt 0:00:13]} 30. Re1+ {[%emt 0:01:08]} Be2 {[%emt 0:00:31]} 31. Rxe2+ {[%emt 0:00:11]} 1-0